[Event "2026 European Womens Championship"]
[Site "Batumi, GE"]
[Date "2026.06.05"]
[Round "11"]
[White "Chighvaria, Ana"]
[Black "Rekhviashvili, Mariam"]
[Result "1-0"]
[Board "78"]
[TimeControl "5400+30"]
[WhiteFideId "13628666"]
[BlackFideId "13635859"]
[WhiteElo "1518"]
[BlackElo "1836"]
[WhiteClock "0:10:36"]
[BlackClock "0:15:16"]
[Variant "Standard"]

1. d4 {[%clk 1:30:57]}  d5 {[%clk 1:30:55]} 2. Nf3 {[%clk 1:31:22]}  Nf6 {[%clk 1:31:17]} 3. Nbd2 {[%clk 1:31:37]}  e6 {[%clk 1:29:56]}
4. e3 {[%clk 1:31:59]}  Bd6 {[%clk 1:30:10]} 5. Bd3 {[%clk 1:32:19]}  O-O {[%clk 1:30:30]} 6. b3 {[%clk 1:32:18]}  Nbd7 {[%clk 1:30:34]}
7. Bb2 {[%clk 1:32:38]}  b6 {[%clk 1:30:37]} 8. O-O {[%clk 1:32:52]}  Bb7 {[%clk 1:31:04]} 9. Ne5 {[%clk 1:32:20]}  Ne4 {[%clk 1:29:40]}
10. Nxe4 {[%clk 1:32:21]}  dxe4 {[%clk 1:30:05]} 11. Bc4 {[%clk 1:32:32]}  Nf6 {[%clk 1:25:28]} 12. Qe2 {[%clk 1:28:13]}  Nd5 {[%clk 1:24:43]}
13. Ba6 {[%clk 1:25:27]}  Bxa6 {[%clk 1:22:35]} 14. Qxa6 {[%clk 1:25:07]}  Qg5 {[%clk 1:22:37]} 15. Qe2 {[%clk 1:21:38]}  f5 {[%clk 1:22:51]}
16. c4 {[%clk 1:16:19]}  Nf6 {[%clk 1:17:34]} 17. Rac1 {[%clk 1:12:47]}  Ng4 {[%clk 1:02:26]} 18. h3 {[%clk 1:02:32]}  Nf6 {[%clk 1:00:38]}
19. a4 {[%clk 0:49:07]}  Nh5 {[%clk 0:57:57]} 20. f4 {[%clk 0:43:03]}  exf3 {[%clk 0:57:46]} 21. Qxf3 {[%clk 0:42:44]}  Bxe5 {[%clk 0:55:27]}
22. dxe5 {[%clk 0:42:17]}  Rad8 {[%clk 0:51:11]} 23. Rcd1 {[%clk 0:36:53]}  Rxd1 {[%clk 0:49:09]} 24. Rxd1 {[%clk 0:37:15]}  f4 {[%clk 0:48:55]}
25. exf4 {[%clk 0:30:46]}  Rxf4 {[%clk 0:39:39]} 26. Qc6 {[%clk 0:27:04]}  Qe7 {[%clk 0:35:19]} 27. Rd7 {[%clk 0:22:56]}  Qf8 {[%clk 0:34:55]}
28. Qxe6+ {[%clk 0:21:42]}  Kh8 {[%clk 0:35:18]} 29. Bc1 {[%clk 0:15:56]}  Rf1+ {[%clk 0:31:15]} 30. Kh2 {[%clk 0:16:19]}  Rxc1 {[%clk 0:23:17]}
31. Rf7 {[%clk 0:16:11]}  Qb8 {[%clk 0:19:46]} 32. Rxc7 {[%clk 0:08:51]}  Nf6 {[%clk 0:12:13]} 33. Rc8+ {[%clk 0:08:54]}  Qxc8 {[%clk 0:12:37]}
34. Qxc8+ {[%clk 0:09:18]}  Ng8 {[%clk 0:13:05]} 35. Qc7 {[%clk 0:08:51]}  Re1 {[%clk 0:13:29]} 36. Qxa7 {[%clk 0:09:00]}  Rxe5 {[%clk 0:13:55]}
37. Qxb6 {[%clk 0:09:23]}  Nf6 {[%clk 0:14:12]} 38. c5 {[%clk 0:09:43]}  h6 {[%clk 0:14:26]} 39. c6 {[%clk 0:10:07]}  Re6 {[%clk 0:14:51]}
40. Qb8+ {[%clk 0:10:11]}  Re8 {[%clk 0:15:16]} 41. c7 {[%clk 0:10:36]} 1-0

[Event "2026 European Womens Championship"]
[Site "Batumi, GE"]
[Date "2026.06.05"]
[Round "11"]
[White "Casadevall Mainau, Iraida"]
[Black "Tsiganova, Monika"]
[Result "0-1"]
[Board "80"]
[TimeControl "5400+30"]
[WhiteFideId "54543142"]
[BlackFideId "4500199"]
[WhiteElo "1729"]
[BlackElo "2039"]
[BlackTitle "WIM"]
[WhiteClock "0:00:56"]
[BlackClock "0:07:47"]
[Variant "Standard"]

1. e4 {[%clk 1:30:30]}  c5 {[%clk 1:30:30]} 2. Nf3 {[%clk 1:30:04]}  d6 {[%clk 1:30:22]} 3. d4 {[%clk 1:29:46]}  cxd4 {[%clk 1:30:14]}
4. Nxd4 {[%clk 1:29:28]}  Nf6 {[%clk 1:30:02]} 5. f3 {[%clk 1:28:55]}  e5 {[%clk 1:29:08]} 6. Nb3 {[%clk 1:28:34]}  d5 {[%clk 1:25:09]}
7. Bg5 {[%clk 1:27:11]}  Be6 {[%clk 1:13:46]} 8. Nc3 {[%clk 1:14:55]}  d4 {[%clk 1:06:34]} 9. Nd5 {[%clk 1:08:11]}  Bxd5 {[%clk 1:04:00]}
10. exd5 {[%clk 1:07:40]}  Qxd5 {[%clk 1:02:44]} 11. c3 {[%clk 1:05:49]}  Nc6 {[%clk 0:56:40]} 12. Bxf6 {[%clk 0:58:30]}  gxf6 {[%clk 0:56:17]}
13. Qd3 {[%clk 0:57:51]}  Bh6 {[%clk 0:48:29]} 14. Rd1 {[%clk 0:37:04]}  O-O-O {[%clk 0:38:47]} 15. Qe4 {[%clk 0:29:43]}  Be3 {[%clk 0:31:25]}
16. Qxd5 {[%clk 0:29:14]}  Rxd5 {[%clk 0:31:14]} 17. Bc4 {[%clk 0:28:22]}  Rd7 {[%clk 0:29:06]} 18. Bd3 {[%clk 0:27:40]}  Rc7 {[%clk 0:25:48]}
19. Ke2 {[%clk 0:25:11]}  h5 {[%clk 0:23:36]} 20. Be4 {[%clk 0:15:08]}  Rd8 {[%clk 0:15:55]} 21. h4 {[%clk 0:08:08]}  Kb8 {[%clk 0:15:37]}
22. g4 {[%clk 0:07:45]}  Ne7 {[%clk 0:10:41]} 23. cxd4 {[%clk 0:05:43]}  exd4 {[%clk 0:10:01]} 24. Rhe1 {[%clk 0:02:25]}  Rc4 {[%clk 0:09:31]}
25. Kf1 {[%clk 0:00:56]}  Rg8 {[%clk 0:08:52]} 26. Bd3 {[%clk 0:00:56]}  Rc7 {[%clk 0:07:47]} 27. Be4 {[%clk 0:00:00]}  hxg4 {[%clk 0:07:47]}
28. Nxd4 {[%clk 0:00:00]}  Bf4 {[%clk 0:00:00]} 29. fxg4 {[%clk 0:00:00]}  Rxg4 {[%clk 0:00:00]} 30. Nf5 {[%clk 0:00:00]}  Nc6 {[%clk 0:00:00]}
31. Bf3 {[%clk 0:00:00]}  Rg8 {[%clk 0:00:00]} 32. Re4 {[%clk 0:00:00]}  Be5 {[%clk 0:00:00]} 33. Re2 {[%clk 0:00:00]}  Nd8 {[%clk 0:00:00]}
34. Red2 {[%clk 0:00:00]}  Ne6 {[%clk 0:00:00]} 35. b3 {[%clk 0:00:00]}  a6 {[%clk 0:00:00]} 36. Rd7 {[%clk 0:00:00]}  Rgc8 {[%clk 0:00:00]}
37. Rxc7 {[%clk 0:00:00]}  Rxc7 {[%clk 0:00:00]} 38. Bh5 {[%clk 0:00:00]}  Nf4 {[%clk 0:00:00]} 39. Bf3 {[%clk 0:00:00]}  Rc2 {[%clk 0:00:00]}
40. Nd6 {[%clk 0:00:00]}  Nh3 {[%clk 0:00:00]} 41. Be2 {[%clk 0:00:00]}  Rxa2 {[%clk 0:00:00]} 42. Nxf7 {[%clk 0:00:00]}  Bc7 {[%clk 0:00:00]}
43. h5 {[%clk 0:00:00]}  Nf4 {[%clk 0:00:00]} 44. Bg4 {[%clk 0:00:00]}  Rh2 {[%clk 0:00:00]} 45. Bf3 {[%clk 0:00:00]}  Nxh5 {[%clk 0:00:00]}
46. Nd8 {[%clk 0:00:00]}  Ng3+ {[%clk 0:00:00]} 47. Kg1 {[%clk 0:00:00]}  Rb2 {[%clk 0:00:00]} 48. Nxb7 {[%clk 0:00:00]}  Bb6+ {[%clk 0:00:00]} 0-1